[Event "Titled Tuesday Blitz February 22 Late 2022"]
[White "Mickiewicz, Piotr"]
[Black "Goltsev, Dmitry"]
[WhiteFideId "1114891"]
[BlackFideId "24176710"]
[WhiteElo "2266"]
[BlackElo "2273"]
[Result "0-1"]
[Round "03"]
[TimeControl "180+1"]
[Date "2022.02.23"]
[WhiteClock "0:00:19"]
[BlackClock "0:00:14"]

1. Nf3 {[%clk 0:03:00]}  d5 {[%clk 0:02:59]} 2. b3 {[%clk 0:03:00]}  c6 {[%clk 0:03:00]} 3. Bb2 {[%clk 0:03:01]}  Nf6 {[%clk 0:03:01]} 4. e3 {[%clk 0:03:01]}  g6 {[%clk 0:03:02]} 5. Be2 {[%clk 0:03:01]}  Bg7 {[%clk 0:03:02]} 6. O-O {[%clk 0:03:02]}  O-O {[%clk 0:03:03]} 7. c4 {[%clk 0:03:02]}  e6 {[%clk 0:03:02]} 8. Qc2 {[%clk 0:03:02]}  Nbd7 {[%clk 0:03:02]} 9. a3 {[%clk 0:03:00]}  Re8 {[%clk 0:03:03]} 10. b4 {[%clk 0:03:00]}  e5 {[%clk 0:03:03]} 11. d3 {[%clk 0:02:54]}  e4 {[%clk 0:03:03]} 12. Nfd2 {[%clk 0:02:41]}  exd3 {[%clk 0:03:01]} 13. Bxd3 {[%clk 0:02:41]}  Ne5 {[%clk 0:03:00]} 14. Be2 {[%clk 0:02:36]}  Bf5 {[%clk 0:02:58]} 15. Qb3 {[%clk 0:02:33]}  dxc4 {[%clk 0:02:55]} 16. Nxc4 {[%clk 0:02:33]}  Nxc4 {[%clk 0:02:55]} 17. Bxc4 {[%clk 0:02:32]}  Be6 {[%clk 0:02:55]} 18. Bxe6 {[%clk 0:02:23]}  Rxe6 {[%clk 0:02:56]} 19. Rd1 {[%clk 0:02:21]}  Qe7 {[%clk 0:02:55]} 20. Nc3 {[%clk 0:02:12]}  Re8 {[%clk 0:02:51]} 21. Rd2 {[%clk 0:02:07]}  Nd7 {[%clk 0:02:50]} 22. Rad1 {[%clk 0:02:04]}  Ne5 {[%clk 0:02:49]} 23. Ne4 {[%clk 0:01:59]}  b6 {[%clk 0:02:46]} 24. Nd6 {[%clk 0:01:52]}  Rf8 {[%clk 0:02:43]} 25. h3 {[%clk 0:01:36]}  c5 {[%clk 0:02:35]} 26. bxc5 {[%clk 0:01:30]}  bxc5 {[%clk 0:02:36]} 27. Bxe5 {[%clk 0:01:28]}  Bxe5 {[%clk 0:02:34]} 28. Nc4 {[%clk 0:01:28]}  Rb8 {[%clk 0:02:32]} 29. Qa4 {[%clk 0:01:17]}  Qh4 {[%clk 0:02:17]} 30. Qc2 {[%clk 0:00:55]}  Rbe8 {[%clk 0:02:06]} 31. Rd5 {[%clk 0:00:52]}  g5 {[%clk 0:01:26]} 32. Nxe5 {[%clk 0:00:48]}  Rxe5 {[%clk 0:01:24]} 33. Qxc5 {[%clk 0:00:48]}  Rxd5 {[%clk 0:01:20]} 34. Rxd5 {[%clk 0:00:49]}  h6 {[%clk 0:01:17]} 35. Qd4 {[%clk 0:00:47]}  Qh5 {[%clk 0:01:05]} 36. h4 {[%clk 0:00:45]}  Qg6 {[%clk 0:00:51]} 37. hxg5 {[%clk 0:00:43]}  hxg5 {[%clk 0:00:52]} 38. Qg4 {[%clk 0:00:35]}  f6 {[%clk 0:00:42]} 39. Qd4 {[%clk 0:00:30]}  Qb1+ {[%clk 0:00:28]} 40. Kh2 {[%clk 0:00:30]}  Qh7+ {[%clk 0:00:28]} 41. Kg3 {[%clk 0:00:30]}  Qc7+ {[%clk 0:00:24]} 42. Kf3 {[%clk 0:00:25]}  Re7 {[%clk 0:00:19]} 43. e4 {[%clk 0:00:24]}  Qf4+ {[%clk 0:00:17]} 44. Ke2 {[%clk 0:00:23]}  Rxe4+ {[%clk 0:00:18]} 45. Qe3 {[%clk 0:00:18]}  Rxe3+ {[%clk 0:00:17]} 46. fxe3 {[%clk 0:00:19]}  Qc4+ {[%clk 0:00:14]} 0-1


[Site "https://www.chess.com"]

[Event "Titled Tuesday Blitz February 22 Late 2022"]
[White "Moroni, Luca Jr"]
[Black "Perez Gormaz, Matias"]
[WhiteFideId "865834"]
[BlackFideId "3406342"]
[WhiteElo "2573"]
[BlackElo "2352"]
[Result "1-0"]
[Round "03"]
[TimeControl "180+1"]
[Date "2022.02.22"]
[WhiteClock "0:00:40"]
[BlackClock "0:00:24"]

1. d4 {[%clk 0:03:00]}  d5 {[%clk 0:02:58]} 2. Bf4 {[%clk 0:03:00]}  Nf6 {[%clk 0:02:57]} 3. e3 {[%clk 0:03:00]}  e6 {[%clk 0:02:58]} 4. Nf3 {[%clk 0:02:59]}  c5 {[%clk 0:02:58]} 5. c3 {[%clk 0:02:57]}  Nc6 {[%clk 0:02:59]} 6. Nbd2 {[%clk 0:02:55]}  cxd4 {[%clk 0:02:59]} 7. exd4 {[%clk 0:02:55]}  Nh5 {[%clk 0:03:00]} 8. Be3 {[%clk 0:02:54]}  Bd6 {[%clk 0:03:00]} 9. Bd3 {[%clk 0:02:55]}  g6 {[%clk 0:02:55]} 10. O-O {[%clk 0:02:54]}  O-O {[%clk 0:02:56]} 11. Bh6 {[%clk 0:02:53]}  Re8 {[%clk 0:02:53]} 12. Re1 {[%clk 0:02:53]}  Bd7 {[%clk 0:02:49]} 13. Nf1 {[%clk 0:02:48]}  Qc7 {[%clk 0:02:41]} 14. Ng3 {[%clk 0:02:42]}  Nf4 {[%clk 0:02:41]} 15. Bf1 {[%clk 0:02:36]}  Rab8 {[%clk 0:02:31]} 16. Qd2 {[%clk 0:02:35]}  f6 {[%clk 0:02:16]} 17. c4 {[%clk 0:02:23]}  dxc4 {[%clk 0:02:09]} 18. Bxc4 {[%clk 0:02:22]}  Nd5 {[%clk 0:02:06]} 19. a3 {[%clk 0:02:17]}  Na5 {[%clk 0:01:42]} 20. Ba2 {[%clk 0:02:17]}  Nc4 {[%clk 0:01:42]} 21. Qe2 {[%clk 0:02:06]}  b5 {[%clk 0:01:41]} 22. Ne4 {[%clk 0:02:05]}  Bf8 {[%clk 0:01:38]} 23. Bxf8 {[%clk 0:02:04]}  Rxf8 {[%clk 0:01:39]} 24. Rac1 {[%clk 0:02:01]}  Rbe8 {[%clk 0:01:05]} 25. b3 {[%clk 0:01:55]}  Nf4 {[%clk 0:00:57]} 26. Qf1 {[%clk 0:01:54]}  Qa5 {[%clk 0:00:49]} 27. bxc4 {[%clk 0:01:49]}  b4 {[%clk 0:00:50]} 28. Nc5 {[%clk 0:01:46]}  Bc8 {[%clk 0:00:47]} 29. g3 {[%clk 0:01:37]}  Nh5 {[%clk 0:00:46]} 30. Qd3 {[%clk 0:01:32]}  e5 {[%clk 0:00:34]} 31. axb4 {[%clk 0:01:24]}  Qxa2 {[%clk 0:00:33]} 32. Ra1 {[%clk 0:01:23]}  Bf5 {[%clk 0:00:24]} 33. Rxa2 {[%clk 0:00:41]}  Bxd3 {[%clk 0:00:23]} 34. Nxd3 {[%clk 0:00:42]}  e4 {[%clk 0:00:24]} 35. Rae2 {[%clk 0:00:40]} 1-0


[Site "https://www.chess.com"]

[Event "Titled Tuesday Blitz February 22 Late 2022"]
[White "Nakamura, Hikaru"]
[Black "Dreev, Aleksey"]
[WhiteFideId "2016192"]
[BlackFideId "4100107"]
[WhiteElo "2850"]
[BlackElo "2636"]
[Result "1-0"]
[Round "03"]
[TimeControl "180+1"]
[Date "2022.02.22"]
[WhiteClock "0:00:58"]
[BlackClock "0:00:39"]

1. Nf3 {[%clk 0:03:00]}  Nf6 {[%clk 0:02:58]} 2. b3 {[%clk 0:02:58]}  g6 {[%clk 0:02:55]} 3. d4 {[%clk 0:02:57]}  Bg7 {[%clk 0:02:55]} 4. Bb2 {[%clk 0:02:58]}  O-O {[%clk 0:02:55]} 5. e3 {[%clk 0:02:58]}  b6 {[%clk 0:02:54]} 6. Be2 {[%clk 0:02:58]}  Bb7 {[%clk 0:02:53]} 7. O-O {[%clk 0:02:58]}  e6 {[%clk 0:02:52]} 8. c4 {[%clk 0:02:57]}  d5 {[%clk 0:02:52]} 9. Nc3 {[%clk 0:02:55]}  Nbd7 {[%clk 0:02:53]} 10. cxd5 {[%clk 0:02:55]}  Nxd5 {[%clk 0:02:51]} 11. Nxd5 {[%clk 0:02:55]}  Bxd5 {[%clk 0:02:50]} 12. Qc2 {[%clk 0:02:46]}  Bb7 {[%clk 0:02:24]} 13. Rad1 {[%clk 0:02:42]}  Rc8 {[%clk 0:02:17]} 14. e4 {[%clk 0:02:38]}  Qe7 {[%clk 0:02:13]} 15. Rfe1 {[%clk 0:02:35]}  Rfd8 {[%clk 0:02:13]} 16. Bc4 {[%clk 0:02:28]}  Nf6 {[%clk 0:01:52]} 17. Ne5 {[%clk 0:01:49]}  a6 {[%clk 0:01:41]} 18. d5 {[%clk 0:01:38]}  b5 {[%clk 0:01:13]} 19. Bf1 {[%clk 0:01:38]}  exd5 {[%clk 0:00:53]} 20. exd5 {[%clk 0:01:39]}  Qf8 {[%clk 0:00:53]} 21. Nc6 {[%clk 0:01:35]}  Re8 {[%clk 0:00:53]} 22. Be5 {[%clk 0:01:15]}  Nxd5 {[%clk 0:00:42]} 23. Rxd5 {[%clk 0:01:02]}  Bxc6 {[%clk 0:00:42]} 24. Qxc6 {[%clk 0:01:01]}  Re6 {[%clk 0:00:39]} 25. Bxg7 {[%clk 0:00:58]} 1-0


[Site "https://www.chess.com"]

[Event "Titled Tuesday Blitz February 22 Late 2022"]
[White "Noboa Silva, Kevin"]
[Black "Prohorov, Olexandr"]
[WhiteFideId "3618471"]
[BlackFideId "14105578"]
[WhiteElo "2161"]
[BlackElo "1993"]
[Result "1-0"]
[Round "03"]
[TimeControl "180+1"]
[Date "2022.02.23"]
[WhiteClock "0:01:23"]
[BlackClock "0:01:01"]

1. d4 {[%clk 0:03:00]}  g6 {[%clk 0:02:56]} 2. e4 {[%clk 0:03:00]}  Bg7 {[%clk 0:02:55]} 3. Nf3 {[%clk 0:03:00]}  c5 {[%clk 0:02:52]} 4. c3 {[%clk 0:03:00]}  cxd4 {[%clk 0:02:51]} 5. cxd4 {[%clk 0:03:01]}  d5 {[%clk 0:02:51]} 6. e5 {[%clk 0:03:00]}  Bg4 {[%clk 0:02:51]} 7. Bb5+ {[%clk 0:03:00]}  Nc6 {[%clk 0:02:51]} 8. Bxc6+ {[%clk 0:03:00]}  bxc6 {[%clk 0:02:51]} 9. Nbd2 {[%clk 0:03:00]}  Nh6 {[%clk 0:02:51]} 10. O-O {[%clk 0:02:59]}  O-O {[%clk 0:02:50]} 11. h3 {[%clk 0:02:59]}  Bxf3 {[%clk 0:02:50]} 12. Nxf3 {[%clk 0:03:00]}  f6 {[%clk 0:02:49]} 13. Qa4 {[%clk 0:02:57]}  Qb6 {[%clk 0:02:47]} 14. b3 {[%clk 0:02:55]}  Nf5 {[%clk 0:02:44]} 15. g4 {[%clk 0:02:44]}  Nh6 {[%clk 0:02:35]} 16. Bxh6 {[%clk 0:02:40]}  Bxh6 {[%clk 0:02:35]} 17. Rfe1 {[%clk 0:02:36]}  Bg7 {[%clk 0:02:28]} 18. exf6 {[%clk 0:02:34]}  Bxf6 {[%clk 0:02:23]} 19. Re6 {[%clk 0:02:31]}  Rac8 {[%clk 0:02:10]} 20. Rc1 {[%clk 0:02:28]}  Bg7 {[%clk 0:01:53]} 21. Ne5 {[%clk 0:02:24]}  Bxe5 {[%clk 0:01:50]} 22. Rxe5 {[%clk 0:02:24]}  c5 {[%clk 0:01:42]} 23. Rxd5 {[%clk 0:02:16]}  Qf6 {[%clk 0:01:34]} 24. Rf1 {[%clk 0:02:09]}  Qf3 {[%clk 0:01:28]} 25. Qc4 {[%clk 0:02:09]}  Kh8 {[%clk 0:01:25]} 26. Rxc5 {[%clk 0:02:02]}  Rxc5 {[%clk 0:01:11]} 27. dxc5 {[%clk 0:02:03]}  Rf4 {[%clk 0:01:11]} 28. Qe6 {[%clk 0:02:01]}  Qxh3 {[%clk 0:01:10]} 29. Qe5+ {[%clk 0:01:51]}  Rf6 {[%clk 0:01:07]} 30. f3 {[%clk 0:01:38]}  Kg8 {[%clk 0:01:06]} 31. b4 {[%clk 0:01:25]}  Rxf3 {[%clk 0:01:01]} 32. Qd5+ {[%clk 0:01:23]} 1-0


[Site "https://www.chess.com"]

[Event "Titled Tuesday Blitz February 22 Late 2022"]
[White "Novikov, Evgenij"]
[Black "Sarkar, Justin"]
[WhiteFideId "4125380"]
[BlackFideId "2010011"]
[WhiteElo "2242"]
[BlackElo "2038"]
[Result "1-0"]
[Round "03"]
[TimeControl "180+1"]
[Date "2022.02.23"]
[WhiteClock "0:00:07"]
[BlackClock "0:00:01"]

1. e4 {[%clk 0:03:00]}  c5 {[%clk 0:02:52]} 2. Nf3 {[%clk 0:02:58]}  Nc6 {[%clk 0:02:52]} 3. d4 {[%clk 0:02:58]}  cxd4 {[%clk 0:02:51]} 4. Nxd4 {[%clk 0:02:59]}  Nf6 {[%clk 0:02:51]} 5. Nc3 {[%clk 0:03:00]}  d6 {[%clk 0:02:51]} 6. Nxc6 {[%clk 0:02:57]}  bxc6 {[%clk 0:02:49]} 7. Bd3 {[%clk 0:02:57]}  e5 {[%clk 0:02:42]} 8. O-O {[%clk 0:02:57]}  Be7 {[%clk 0:02:41]} 9. h3 {[%clk 0:02:56]}  O-O {[%clk 0:02:39]} 10. f4 {[%clk 0:02:55]}  exf4 {[%clk 0:02:38]} 11. Bxf4 {[%clk 0:02:55]}  Qb6+ {[%clk 0:02:36]} 12. Kh1 {[%clk 0:02:52]}  Qxb2 {[%clk 0:02:34]} 13. Qd2 {[%clk 0:02:50]}  Be6 {[%clk 0:02:23]} 14. Rab1 {[%clk 0:02:44]}  Qa3 {[%clk 0:02:22]} 15. Rb7 {[%clk 0:02:44]}  Rfe8 {[%clk 0:02:11]} 16. Bg5 {[%clk 0:02:27]}  Nd7 {[%clk 0:01:58]} 17. Nd5 {[%clk 0:02:03]}  cxd5 {[%clk 0:01:18]} 18. exd5 {[%clk 0:02:01]}  Bxg5 {[%clk 0:01:12]} 19. Qxg5 {[%clk 0:01:49]}  h6 {[%clk 0:01:08]} 20. Qh5 {[%clk 0:01:14]}  Qc5 {[%clk 0:00:52]} 21. Rxd7 {[%clk 0:01:07]}  Qxd5 {[%clk 0:00:37]} 22. Qxd5 {[%clk 0:00:58]}  Bxd5 {[%clk 0:00:37]} 23. Rxd6 {[%clk 0:00:59]}  Bxa2 {[%clk 0:00:36]} 24. Rd7 {[%clk 0:00:48]}  Be6 {[%clk 0:00:34]} 25. Rc7 {[%clk 0:00:45]}  a5 {[%clk 0:00:33]} 26. Ra1 {[%clk 0:00:40]}  Rec8 {[%clk 0:00:26]} 27. Rb7 {[%clk 0:00:33]}  a4 {[%clk 0:00:17]} 28. Ra3 {[%clk 0:00:32]}  Bd5 {[%clk 0:00:14]} 29. Rb4 {[%clk 0:00:31]}  Bc6 {[%clk 0:00:13]} 30. Rc4 {[%clk 0:00:29]}  Kf8 {[%clk 0:00:10]} 31. Kh2 {[%clk 0:00:27]}  Ke7 {[%clk 0:00:10]} 32. h4 {[%clk 0:00:28]}  Kd6 {[%clk 0:00:10]} 33. h5 {[%clk 0:00:28]}  Rab8 {[%clk 0:00:09]} 34. Be4 {[%clk 0:00:25]}  Bxe4 {[%clk 0:00:08]} 35. Rxe4 {[%clk 0:00:26]}  Rxc2 {[%clk 0:00:08]} 36. Raxa4 {[%clk 0:00:24]}  Rb5 {[%clk 0:00:07]} 37. Ra6+ {[%clk 0:00:22]}  Rc6 {[%clk 0:00:07]} 38. Rd4+ {[%clk 0:00:20]}  Kc5 {[%clk 0:00:07]} 39. Raa4 {[%clk 0:00:17]}  Kb6 {[%clk 0:00:05]} 40. g4 {[%clk 0:00:15]}  Rc2+ {[%clk 0:00:05]} 41. Kg3 {[%clk 0:00:15]}  Rb3+ {[%clk 0:00:04]} 42. Kf4 {[%clk 0:00:16]}  Rf2+ {[%clk 0:00:04]} 43. Ke5 {[%clk 0:00:16]}  Re3+ {[%clk 0:00:04]} 44. Kd6 {[%clk 0:00:16]}  Rf6+ {[%clk 0:00:04]} 45. Kd7 {[%clk 0:00:16]}  Re5 {[%clk 0:00:04]} 46. Rab4+ {[%clk 0:00:16]}  Rb5 {[%clk 0:00:04]} 47. Rbc4 {[%clk 0:00:16]}  Rc5 {[%clk 0:00:04]} 48. Rb4+ {[%clk 0:00:16]}  Rb5 {[%clk 0:00:04]} 49. Ra4 {[%clk 0:00:16]}  Ra5 {[%clk 0:00:04]} 50. Rdb4+ {[%clk 0:00:14]}  Kc5 {[%clk 0:00:04]} 51. Rxa5+ {[%clk 0:00:06]}  Kxb4 {[%clk 0:00:04]} 52. Rf5 {[%clk 0:00:07]}  Rxf5 {[%clk 0:00:03]} 53. gxf5 {[%clk 0:00:07]}  Kc5 {[%clk 0:00:03]} 54. Ke7 {[%clk 0:00:08]}  Kd5 {[%clk 0:00:03]} 55. Kxf7 {[%clk 0:00:08]}  Ke5 {[%clk 0:00:03]} 56. Kg6 {[%clk 0:00:03]}  Kf4 {[%clk 0:00:03]} 57. f6 {[%clk 0:00:03]}  gxf6 {[%clk 0:00:03]} 58. Kxh6 {[%clk 0:00:04]}  f5 {[%clk 0:00:02]} 59. Kg7 {[%clk 0:00:04]}  Kg4 {[%clk 0:00:02]} 60. h6 {[%clk 0:00:05]}  f4 {[%clk 0:00:02]} 61. h7 {[%clk 0:00:05]}  f3 {[%clk 0:00:03]} 62. h8=Q {[%clk 0:00:06]}  f2 {[%clk 0:00:03]} 63. Qh1 {[%clk 0:00:06]}  Kg3 {[%clk 0:00:01]} 64. Qf1 {[%clk 0:00:07]} 1-0


[Site "https://www.chess.com"]

[Event "Titled Tuesday Blitz February 22 Late 2022"]
[White "Ponkratov, Pavel"]
[Black "Ezat, Mohamed"]
[WhiteFideId "4157800"]
[BlackFideId "10600906"]
[WhiteElo "2487"]
[BlackElo "2386"]
[Result "1/2-1/2"]
[Round "03"]
[TimeControl "180+1"]
[Date "2022.02.22"]
[WhiteClock "0:00:38"]
[BlackClock "0:00:03"]

1. d4 {[%clk 0:03:00]}  Nf6 {[%clk 0:02:59]} 2. c4 {[%clk 0:03:01]}  g6 {[%clk 0:02:59]} 3. Nc3 {[%clk 0:03:02]}  Bg7 {[%clk 0:02:59]} 4. e4 {[%clk 0:03:03]}  d6 {[%clk 0:02:59]} 5. f4 {[%clk 0:03:03]}  O-O {[%clk 0:03:00]} 6. Nf3 {[%clk 0:03:03]}  c5 {[%clk 0:02:58]} 7. d5 {[%clk 0:03:04]}  e5 {[%clk 0:02:58]} 8. dxe6 {[%clk 0:03:03]}  Bxe6 {[%clk 0:02:56]} 9. Bd3 {[%clk 0:03:02]}  Bg4 {[%clk 0:02:56]} 10. O-O {[%clk 0:03:02]}  Nc6 {[%clk 0:02:56]} 11. h3 {[%clk 0:03:01]}  Bxf3 {[%clk 0:02:56]} 12. Qxf3 {[%clk 0:03:02]}  Nd4 {[%clk 0:02:56]} 13. Qf2 {[%clk 0:03:01]}  Nd7 {[%clk 0:02:56]} 14. Be3 {[%clk 0:03:01]}  a6 {[%clk 0:02:55]} 15. Rad1 {[%clk 0:03:01]}  b5 {[%clk 0:02:51]} 16. b3 {[%clk 0:03:01]}  Nb6 {[%clk 0:02:46]} 17. cxb5 {[%clk 0:03:00]}  axb5 {[%clk 0:02:46]} 18. Nxb5 {[%clk 0:03:00]}  Nxb5 {[%clk 0:02:45]} 19. Bxb5 {[%clk 0:03:01]}  Qc7 {[%clk 0:02:43]} 20. e5 {[%clk 0:02:55]}  dxe5 {[%clk 0:02:43]} 21. f5 {[%clk 0:02:55]}  Rfd8 {[%clk 0:02:27]} 22. Rxd8+ {[%clk 0:02:50]}  Rxd8 {[%clk 0:02:26]} 23. Bxc5 {[%clk 0:02:49]}  Nd5 {[%clk 0:02:25]} 24. Bc4 {[%clk 0:02:43]}  Nf4 {[%clk 0:02:24]} 25. fxg6 {[%clk 0:02:35]}  hxg6 {[%clk 0:02:24]} 26. b4 {[%clk 0:02:35]}  Bf8 {[%clk 0:02:17]} 27. Bxf8 {[%clk 0:02:30]}  Kxf8 {[%clk 0:02:15]} 28. Bb3 {[%clk 0:02:29]}  Kg7 {[%clk 0:02:04]} 29. b5 {[%clk 0:02:28]}  Qc3 {[%clk 0:01:58]} 30. Qa7 {[%clk 0:02:19]}  Nxh3+ {[%clk 0:01:42]} 31. Kh2 {[%clk 0:02:18]}  Ng5 {[%clk 0:01:33]} 32. Rxf7+ {[%clk 0:02:13]}  Nxf7 {[%clk 0:01:32]} 33. Qxf7+ {[%clk 0:02:14]}  Kh6 {[%clk 0:01:32]} 34. Qe7 {[%clk 0:02:10]}  Qd4 {[%clk 0:01:30]} 35. Bc2 {[%clk 0:01:45]}  Qf4+ {[%clk 0:01:23]} 36. Kh3 {[%clk 0:01:41]}  Rd2 {[%clk 0:01:11]} 37. Qc5 {[%clk 0:01:15]}  Rd4 {[%clk 0:00:47]} 38. Qe7 {[%clk 0:01:02]}  Qg4+ {[%clk 0:00:36]} 39. Kh2 {[%clk 0:01:02]}  Qf4+ {[%clk 0:00:36]} 40. Kh3 {[%clk 0:01:02]}  Qg4+ {[%clk 0:00:35]} 41. Kh2 {[%clk 0:01:02]}  Qh4+ {[%clk 0:00:33]} 42. Qxh4+ {[%clk 0:01:01]}  Rxh4+ {[%clk 0:00:34]} 43. Kg3 {[%clk 0:01:02]}  Rb4 {[%clk 0:00:33]} 44. a4 {[%clk 0:01:01]}  Kg5 {[%clk 0:00:33]} 45. Kf3 {[%clk 0:01:00]}  Kf6 {[%clk 0:00:32]} 46. Ke3 {[%clk 0:00:59]}  Ke6 {[%clk 0:00:32]} 47. Kd3 {[%clk 0:00:59]}  Kd5 {[%clk 0:00:32]} 48. Kc3 {[%clk 0:00:55]}  Kc5 {[%clk 0:00:32]} 49. Bxg6 {[%clk 0:00:51]}  Rxa4 {[%clk 0:00:32]} 50. Be8 {[%clk 0:00:51]}  Rg4 {[%clk 0:00:31]} 51. Bc6 {[%clk 0:00:51]}  e4 {[%clk 0:00:28]} 52. Kd2 {[%clk 0:00:48]}  Kd4 {[%clk 0:00:24]} 53. b6 {[%clk 0:00:45]}  Rxg2+ {[%clk 0:00:24]} 54. Kd1 {[%clk 0:00:46]}  Rb2 {[%clk 0:00:21]} 55. b7 {[%clk 0:00:45]}  e3 {[%clk 0:00:19]} 56. Bf3 {[%clk 0:00:44]}  Kd3 {[%clk 0:00:17]} 57. Be2+ {[%clk 0:00:42]}  Kc3 {[%clk 0:00:15]} 58. Ba6 {[%clk 0:00:42]}  Kd4 {[%clk 0:00:15]} 59. Kc1 {[%clk 0:00:41]}  Rb6 {[%clk 0:00:14]} 60. Kc2 {[%clk 0:00:42]}  Ke4 {[%clk 0:00:14]} 61. Kc3 {[%clk 0:00:39]}  Kf3 {[%clk 0:00:14]} 62. Kd4 {[%clk 0:00:39]}  e2 {[%clk 0:00:13]} 63. Kc5 {[%clk 0:00:39]}  e1=Q {[%clk 0:00:05]} 64. Kxb6 {[%clk 0:00:39]}  Qe3+ {[%clk 0:00:06]} 65. Kc7 {[%clk 0:00:40]}  Qe5+ {[%clk 0:00:06]} 66. Kc8 {[%clk 0:00:39]}  Qc5+ {[%clk 0:00:06]} 67. Kb8 {[%clk 0:00:38]}  Kf4 {[%clk 0:00:04]} 68. Ka8 {[%clk 0:00:38]}  Qc6 {[%clk 0:00:04]} 69. Ka7 {[%clk 0:00:38]}  Qc7 {[%clk 0:00:03]} 70. Ka8 {[%clk 0:00:38]}  Qc6 {[%clk 0:00:03]} 71. Ka7 {[%clk 0:00:38]}  Qc5+ {[%clk 0:00:03]} 72. Ka8 {[%clk 0:00:38]}  Qc6 {[%clk 0:00:03]} 1/2-1/2


[Site "https://www.chess.com"]

[Event "Titled Tuesday Blitz February 22 Late 2022"]
[White "Quirke, Jeffrey"]
[Black "Fiorito, Fabian"]
[WhiteFideId "2013029"]
[BlackFideId "100200"]
[WhiteElo "2209"]
[BlackElo "2395"]
[Result "0-1"]
[Round "03"]
[TimeControl "180+1"]
[Date "2022.02.23"]
[WhiteClock "0:02:04"]
[BlackClock "0:02:36"]

1. c4 {[%clk 0:03:00]}  c6 {[%clk 0:02:58]} 2. g3 {[%clk 0:02:59]}  d5 {[%clk 0:02:59]} 3. Bg2 {[%clk 0:03:00]}  Nf6 {[%clk 0:03:00]} 4. Nf3 {[%clk 0:03:00]}  Bf5 {[%clk 0:03:00]} 5. O-O {[%clk 0:03:00]}  e6 {[%clk 0:03:01]} 6. d3 {[%clk 0:02:47]}  Nbd7 {[%clk 0:03:00]} 7. Nbd2 {[%clk 0:02:42]}  h6 {[%clk 0:03:00]} 8. b3 {[%clk 0:02:42]}  Be7 {[%clk 0:02:59]} 9. Bb2 {[%clk 0:02:42]}  O-O {[%clk 0:03:00]} 10. Rc1 {[%clk 0:02:40]}  a5 {[%clk 0:03:00]} 11. a3 {[%clk 0:02:38]}  Qb6 {[%clk 0:02:58]} 12. Qc2 {[%clk 0:02:33]}  Bc5 {[%clk 0:02:55]} 13. e3 {[%clk 0:02:20]}  Ng4 {[%clk 0:02:39]} 14. Nd4 {[%clk 0:02:05]}  Bg6 {[%clk 0:02:36]} 15. h3 {[%clk 0:02:04]}  Nge5 {[%clk 0:02:36]} 0-1


[Site "https://www.chess.com"]

[Event "Titled Tuesday Blitz February 22 Late 2022"]
[White "Riehle, Marco"]
[Black "Chabris, Christopher"]
[WhiteFideId "12904392"]
[BlackFideId "2005263"]
[WhiteElo "2462"]
[BlackElo "2318"]
[Result "1-0"]
[Round "03"]
[TimeControl "180+1"]
[Date "2022.02.23"]
[WhiteClock "0:00:29"]
[BlackClock "0:00:01"]

1. e4 {[%clk 0:03:00]}  c5 {[%clk 0:02:58]} 2. a3 {[%clk 0:02:59]}  g6 {[%clk 0:02:58]} 3. h4 {[%clk 0:02:58]}  h5 {[%clk 0:02:57]} 4. Nc3 {[%clk 0:02:56]}  Bg7 {[%clk 0:02:57]} 5. Bc4 {[%clk 0:02:55]}  Nc6 {[%clk 0:02:54]} 6. d3 {[%clk 0:02:54]}  a6 {[%clk 0:02:51]} 7. Nf3 {[%clk 0:02:53]}  e6 {[%clk 0:02:48]} 8. Bg5 {[%clk 0:02:52]}  Qc7 {[%clk 0:02:40]} 9. Qd2 {[%clk 0:02:52]}  b5 {[%clk 0:02:39]} 10. Ba2 {[%clk 0:02:50]}  Nd4 {[%clk 0:02:29]} 11. Nxd4 {[%clk 0:02:49]}  cxd4 {[%clk 0:02:26]} 12. Ne2 {[%clk 0:02:48]}  Bb7 {[%clk 0:02:23]} 13. O-O-O {[%clk 0:02:48]}  Rc8 {[%clk 0:02:16]} 14. Kb1 {[%clk 0:02:44]}  Ne7 {[%clk 0:02:10]} 15. f4 {[%clk 0:02:41]}  f6 {[%clk 0:02:04]} 16. f5 {[%clk 0:02:38]}  fxg5 {[%clk 0:02:03]} 17. fxe6 {[%clk 0:02:32]}  d5 {[%clk 0:01:37]} 18. Rc1 {[%clk 0:02:24]}  dxe4 {[%clk 0:01:32]} 19. dxe4 {[%clk 0:02:23]}  Bxe4 {[%clk 0:01:31]} 20. Nxd4 {[%clk 0:02:22]}  O-O {[%clk 0:01:20]} 21. Nf3 {[%clk 0:02:16]}  Bxf3 {[%clk 0:01:14]} 22. gxf3 {[%clk 0:02:17]}  Qe5 {[%clk 0:01:08]} 23. c3 {[%clk 0:02:13]}  b4 {[%clk 0:01:04]} 24. axb4 {[%clk 0:02:12]}  a5 {[%clk 0:01:04]} 25. bxa5 {[%clk 0:02:05]}  Rxf3 {[%clk 0:01:02]} 26. Qxg5 {[%clk 0:02:01]}  Rf2 {[%clk 0:00:41]} 27. Qxe7 {[%clk 0:01:52]}  Rb8 {[%clk 0:00:33]} 28. Qa3 {[%clk 0:01:42]}  Qe2 {[%clk 0:00:25]} 29. b4 {[%clk 0:01:21]}  Qd3+ {[%clk 0:00:19]} 30. Ka1 {[%clk 0:01:19]}  Kh7 {[%clk 0:00:14]} 31. Rhd1 {[%clk 0:01:15]}  Qe2 {[%clk 0:00:14]} 32. Re1 {[%clk 0:01:14]}  Qd2 {[%clk 0:00:14]} 33. Red1 {[%clk 0:01:12]}  Qe2 {[%clk 0:00:14]} 34. e7 {[%clk 0:01:12]}  Re8 {[%clk 0:00:14]} 35. Re1 {[%clk 0:01:12]}  Qd2 {[%clk 0:00:14]} 36. Red1 {[%clk 0:01:01]}  Qe2 {[%clk 0:00:11]} 37. Bb1 {[%clk 0:00:55]}  Rxe7 {[%clk 0:00:08]} 38. Bd3 {[%clk 0:00:55]}  Qe5 {[%clk 0:00:06]} 39. Rc2 {[%clk 0:00:49]}  Rxc2 {[%clk 0:00:05]} 40. Bxc2 {[%clk 0:00:50]}  Qxc3+ {[%clk 0:00:05]} 41. Qxc3 {[%clk 0:00:51]}  Bxc3+ {[%clk 0:00:05]} 42. Ka2 {[%clk 0:00:51]}  Bxb4 {[%clk 0:00:05]} 43. Rd5 {[%clk 0:00:51]}  Ra7 {[%clk 0:00:04]} 44. Kb3 {[%clk 0:00:51]}  Bxa5 {[%clk 0:00:04]} 45. Rxh5+ {[%clk 0:00:52]}  Kg7 {[%clk 0:00:03]} 46. Rg5 {[%clk 0:00:53]}  Ra6 {[%clk 0:00:03]} 47. h5 {[%clk 0:00:52]}  Kh6 {[%clk 0:00:02]} 48. Rd5 {[%clk 0:00:41]}  g5 {[%clk 0:00:02]} 49. Bd1 {[%clk 0:00:41]}  Be1 {[%clk 0:00:01]} 50. Be2 {[%clk 0:00:40]}  Rb6+ {[%clk 0:00:01]} 51. Kc4 {[%clk 0:00:39]}  Rf6 {[%clk 0:00:01]} 52. Kd3 {[%clk 0:00:39]}  Bg3 {[%clk 0:00:01]} 53. Bg4 {[%clk 0:00:38]}  Bf4 {[%clk 0:00:02]} 54. Ke4 {[%clk 0:00:39]}  Rf7 {[%clk 0:00:01]} 55. Rb5 {[%clk 0:00:37]}  Re7+ {[%clk 0:00:01]} 56. Kf3 {[%clk 0:00:36]}  Re5 {[%clk 0:00:01]} 57. Rb6+ {[%clk 0:00:34]}  Kg7 {[%clk 0:00:01]} 58. Rb7+ {[%clk 0:00:35]}  Kh6 {[%clk 0:00:01]} 59. Rb6+ {[%clk 0:00:35]}  Kg7 {[%clk 0:00:01]} 60. Kf2 {[%clk 0:00:33]}  Kh7 {[%clk 0:00:01]} 61. Be2 {[%clk 0:00:32]}  Kg7 {[%clk 0:00:02]} 62. h6+ {[%clk 0:00:31]}  Kh7 {[%clk 0:00:02]} 63. Bd3+ {[%clk 0:00:32]}  Kg8 {[%clk 0:00:01]} 64. h7+ {[%clk 0:00:31]}  Kg7 {[%clk 0:00:01]} 65. Rb7+ {[%clk 0:00:29]} 1-0


[Site "https://www.chess.com"]